Cogmind - Beta 12 @@@ ROGUE MODE // 2023.10.23 @ 22:55:33 Player: FrostySpirit Result: Self-destructed Performance ------------- Evolutions (1) 500 Regions Visited (2) 400 Robots Destroyed (22) 110 Value Destroyed (247) 247 Prototype IDs (2) 40 Alien Tech Used (0) 0 Bonus (0) 0 TOTAL SCORE: 1297 Bonus ------- None Cogmind --------- Core Integrity 325/400 Matter 127/350 Energy 125/125 System Corruption 0% Temperature Cool (0) Movement Treading (160) Location -9/Materials Parts ------- > --- POWER (1) -------- Light Ion Engine > --- PROPULSION (4) --- Light Treads Light Treads Flight Unit > --- UTILITY (2) ------ Medium Storage Unit Small Matter Pod > --- WEAPON (2) ------- Advanced Beam Rifle Light Assault Rifle > --- INVENTORY (10) --- Heat Sink Medium Storage Unit Heavy Particle Gun Scythe Peak State ------------ > --- POWER ------------ Light Ion Engine > --- PROPULSION ------- Wheel Compact Wheel > --- UTILITY ---------- Small Storage Unit Huge Storage Unit > --- WEAPON ----------- Heavy Particle Gun Advanced Beam Rifle > --- INVENTORY -------- Ion Engine Light Treads Light Treads Aluminum Leg Aluminum Leg Medium Storage Unit Medium Storage Unit Medium Storage Unit Small Matter Pod Small Matter Pod High-capacity Matter Pod Signal Interpreter Improved Terrain Scanner Medium Laser Heavy Particle Gun Heavy Particle Gun Heavy Particle Gun Advanced Beam Rifle Advanced Beam Rifle Advanced Beam Rifle Assault Rifle Assault Rifle Light Assault Rifle [Rating: 17] Favorites ----------- Power Light Ion Engine Engine Light Ion Engine Propulsion Compact Wheel Treads Light Treads Wheel Compact Wheel Flight Unit Flight Unit Utility Small Storage Unit Device Improved Terrain Scanner Storage Small Storage Unit Weapon Assault Rifle Energy Gun Advanced Beam Rifle Ballistic Gun Assault Rifle Build | -11 -10 -9 ------- Run | Jun Mat Mat Slots Evolved 2 | . . 2 Power . | . . . Propulsion 2 | . . 2 Utility . | . . . Weapon . | . . . Parts Attached 22 | 10 3 9 Power 3 | 2 1 . Engine 3 | 2 1 . Core . | . . . Reactor . | . . . Propulsion 7 | 3 1 3 Treads 2 | . . 2 Leg . | . . . Wheel 4 | 3 1 . Hover . | . . . Flight 1 | . . 1 Utility 6 | 3 1 2 Device 1 | 1 . . Storage 5 | 2 1 2 Processor . | . . . Hackware . | . . . Protection . | . . . Artifact . | . . . Weapon 6 | 2 . 4 Energy Gun 3 | . . 3 Energy Cannon . | . . . Ballistic Gun 3 | 2 . 1 Ballistic Cannon . | . . . Launcher . | . . . Special Weapon . | . . . Impact Weapon . | . . . Slashing Weapon . | . . . Piercing Weapon . | . . . Special Melee Weapon . | . . . Unidentified Prototypes 2 | . . 2 Parts Lost 1 | . 1 . Power . | . . . Propulsion 1 | . 1 . Utility . | . . . Weapon . | . . . Highest Loss Streak 1 | . 1 . To Critical Strikes . | . . . Average Slot Usage (%) 87 | . 100 72 Engine 12 | . 14 11 Treads 4 | . . 9 Wheel 19 | . 28 9 Flight 2 | . . 5 Storage 23 | . 28 18 Energy Gun 5 | . . 12 Ballistic Gun 17 | . 28 5 Naked Turns . | . . . Heaviest Build 94 | 19 94 93 Greatest Support 40 | 32 32 40 Greatest Overweight (x) 5 | . 5 3 Average Overweight (x) 1 | . 2 1 Largest Inventory Capacity 25 | 8 25 25 Average Capacity 17 | 7 24 15 Most Carried 25 | 8 16 25 Average Carried 10 | 4 12 11 Final Capacity 25 | 8 25 10 Final Carried 15 | 8 15 4 Class Distribution -------------------- 100% | Mutant Dominant Class ---------------- Mutant | -10/Materials Mutant | -9/Materials Resources | -11 -10 -9 ----------- Run | Jun Mat Mat Matter Collected 485 | 234 219 32 Remotely . | . . . Salvage Created 584 | 125 373 86 Parts 54 | 12 28 14 Haulers Intercepted . | . . . Recyclers Shooed 4 | 1 2 1 Parts Field Recycled . | . . . Retrieved Matter . | . . . Parts Self-Destructed . | . . . Prevented . | . . . Kills | -11 -10 -9 ------- Run | Jun Mat Mat Combat Hostiles Destroyed 10 | . 7 3 Guns 10 | . 7 3 Classes Destroyed 7 | 2 4 1 Worker 1 | . . 1 Builder 1 | . 1 . Tunneler 3 | 3 . . Recycler 4 | 1 3 . Watcher 3 | . 1 2 Swarmer 8 | . 5 3 Grunt 2 | . 2 . Best Kill Streak 8 | 4 8 3 Combat Bots Only 3 | . 3 3 Max Kills in Single Turn 1 | 1 1 1 Gunslinging . | . . . Exploded . | . . . Melee . | . . . Uniques/NPCs Destroyed . | . . . Combat | -11 -10 -9 -------- Run | Jun Mat Mat Damage Taken 429 | . 301 128 Core 169 | . 94 75 Absorbed by Shields . | . . . Core Remaining (%) 81 | 100 62 . Volleys Fired 56 | 8 30 18 Largest 2 | 2 2 2 Hottest 116 | 40 40 116 Shots Fired 112 | 16 61 35 Gun 112 | 16 61 35 Cannon . | . . . Launcher . | . . . Special . | . . . Kinetic 81 | 16 61 4 Thermal 31 | . . 31 Explosive . | . . . Electromagnetic . | . . . Robot Hit Streak 5 | 2 5 3 Robot Miss Streak 5 | 1 5 3 Penetration Max . | . . . Secondary Targets 4 | . 3 1 Max Gunslinging Chain 1 | . 1 1 Shots Hit Robots 62 | 8 36 18 Core Hits 28 | 5 17 6 Critical Kills . | . . . Critical Parts Destroyed 1 | . . 1 Critical Strikes 2 | . . 2 Burn 1 | . . 1 Destroy 1 | . . 1 Melee Attacks . | . . . Impact . | . . . Slashing . | . . . Piercing . | . . . Sneak Attacks . | . . . Combat Hostiles . | . . . Follow-up Attacks . | . . . Damage Inflicted 863 | 101 451 311 Guns 848 | 101 436 311 Cannons . | . . . Explosions . | . . . Melee . | . . . Ramming 15 | . 15 . Kinetic 555 | 101 436 18 Thermal 293 | . . 293 Explosive . | . . . Electromagnetic . | . . . Impact . | . . . Slashing . | . . . Piercing . | . . . Highest Corruption 4 | . 4 . Average Corruption 4 | . 4 . Corruption Purged . | . . . Corruption Blocked . | . . . Effects 4 | . 4 . Message Errors 1 | . 1 . Matter Fused 2 | . 2 . Misfires 1 | . 1 . Overload Shots . | . . . Overflow Damage . | . . . Projectiles . | . . . Explosions . | . . . Melee . | . . . Knockbacks . | . . . Impact . | . . . Kinetic . | . . . Secondary . | . . . Self-Inflicted Damage 7 | . 7 . Shots . | . . . Rammed 2 | . 1 1 Targets Rammed 2 | . 1 1 Kicked . | . . . Crushed . | . . . Highest Temperature 524 | . 5 524 Average Temperature 215 | . 5 217 Received Heat Transfer 102 | . 84 18 Effects 10 | . . 10 Shutdowns 2 | . . 2 Energy Bleed 1 | . . 1 Interference 1 | . . 1 Short Circuit 2 | . . 2 Damage (major) 3 | . . 3 Damage (core) 1 | . . 1 Siege Activations . | . . . Robots Corrupted . | . . . Combat Hostiles . | . . . Parts Fried . | . . . Impact Corruptions . | . . . Robots Melted . | . . . Combat Hostiles . | . . . Parts Melted . | . . . Heat Transferred 629 | . . 629 Parts Sabotaged . | . . . Parts Stolen . | . . . Parts Stripped . | . . . Power Chain Reactions . | . . . Missiles Intercepted . | . . . Alert | -11 -10 -9 ------- Run | Jun Mat Mat Peak Influence 235 | 20 235 218 Initial 98 | . 13 98 Average 139 | 6 158 179 Maximum Alert Level 1 | . 1 1 Low Security (%) 56 | 100 51 41 Level 1 43 | . 48 58 Level 2 . | . . . Level 3 . | . . . Level 4 . | . . . Level 5 . | . . . High Security . | . . . Max Security . | . . . Squads Dispatched 1 | . . 1 Investigation . | . . . Extermination . | . . . Reinforcement 1 | . . 1 Assault . | . . . Garrison . | . . . Intercept . | . . . Searches Triggered . | . . . Construction Impeded . | . . . Haulers Reinforced . | . . . Active Scanning Responses . | . . . Cargo Convoy Interrupts . | . . . Stealth | -11 -10 -9 --------- Run | Jun Mat Mat Distress Signals 3 | . 1 2 Communications Jammed . | . . . Distress Signals . | . . . Times Spotted 20 | . 10 10 Peak Tracking Total 5 | . 3 5 Tactical Retreats 1 | . 1 . Traps | -11 -10 -9 ------- Run | Jun Mat Mat Traps Triggered . | . . . Indirectly . | . . . Trap Hack Attempts . | . . . Triggered . | . . . Disarmed . | . . . Reprogrammed . | . . . Reused . | . . . Traps Extracted . | . . . Installed . | . . . Triggered . | . . . Machines | -11 -10 -9 ---------- Run | Jun Mat Mat Machines Disabled . | . . . Max in Single Turn . | . . . Machines Repaired . | . . . Machines Sabotaged . | . . . Overloaded Fab Kills . | . . . Hacking | -11 -10 -9 --------- Run | Jun Mat Mat Machines Accessed 1 | . 1 . Terminals 1 | . 1 . Fabricators . | . . . Repair Stations . | . . . Recycling Units . | . . . Scanalyzers . | . . . Garrison Access . | . . . Total Hacks 2 | . 2 . Successful . | . . . Failed 2 | . 2 . Catastrophic . | . . . Database Lockouts . | . . . Manual . | . . . Terminals 2 | . 2 . Fabricators . | . . . Repair Stations . | . . . Recycling Units . | . . . Scanalyzers . | . . . Garrison Access . | . . . Terminal Hacks . | . . . Fabricator Hacks . | . . . Repair Station Hacks . | . . . Recycling Unit Hacks . | . . . Scanalyzer . | . . . Garrison Access Hacks . | . . . Unauthorized Hacks . | . . . Terminals . | . . . Fabricators . | . . . Repair Stations . | . . . Recycling Units . | . . . Scanalyzers . | . . . Garrison Access . | . . . Data Cores Recovered . | . . . Used . | . . . Hacking Detections 1 | . 1 . Full Trace Events . | . . . Feedback Events . | . . . Feedback Blocked . | . . . Robot Schematics Acquired . | . . . Robots Built . | . . . Authchips . | . . . Time . | . . . Total Robot Build Rating . | . . . Part Schematics Acquired . | . . . Parts Built . | . . . Authchips . | . . . Time . | . . . Total Part Build Rating . | . . . Parts Repaired . | . . . Time . | . . . Parts Recycled . | . . . Recycled Matter . | . . . Retrieved Matter . | . . . Retrieved Components . | . . . Parts Scanalyzed . | . . . Part Schematics Acquired . | . . . Parts Damaged . | . . . Bothacking | -11 -10 -9 ------------ Run | Jun Mat Mat Used RIF Installer . | . . . Robots Hacked . | . . . Non-combat . | . . . Combat . | . . . Robot Hacks Applied . | . . . Relay Couplers Released . | . . . Fabnet Peak Effective % . | . . . Robots Rewired . | . . . Allies Hacked . | . . . Hacks Repelled . | . . . Allies | -11 -10 -9 -------- Run | Jun Mat Mat Total Allies . | . . . Largest Group . | . . . Highest-Rated Group . | . . . Highest-Rated Ally . | . . . Total Orders . | . . . Ally Attacks . | . . . Total Damage . | . . . Kills . | . . . Allies Corrupted . | . . . Allies Melted . | . . . Intel | -11 -10 -9 ------- Run | Jun Mat Mat Robot Analysis Total . | . . . Derelict Logs Recovered . | . . . Drone Launches . | . . . Drone Recoveries . | . . . Exploration | -11 -10 -9 ------------- Run | Jun Mat Mat Turns Passed 662 | 118 296 248 Spaces Moved 347 | 82 149 116 Core 7 | 5 . 2 Treads 60 | . . 60 Legs . | . . . Wheels 268 | 77 149 42 Hover . | . . . Flight 12 | . . 12 Fastest Speed 40 | 50 100 40 Average Speed 122 | 90 130 136 Slowest Speed 175 | 100 175 160 Overloaded Moves . | . . . Propulsion Burnouts . | . . . Robots Hopped . | . . . Cave-ins Triggered . | . . . Exploration Rate (%) 15 | 5 26 14 Regions Visited 2 Branch Regions . Pre-discovered Areas . | . . . Known Exits Taken . | . . . Unknown Exits Taken 2 | 1 1 . Scrap Searched . | . . . Spaces Dug . | . . . Terrain Destroyed . | . . . Melee . | . . . Projectile . | . . . AOE . | . . . Terrain Rammed . | . . . Walls Destroyed . | . . . Machines Disabled . | . . . Actions | -11 -10 -9 --------- Run | Jun Mat Mat Total 469 | 106 192 171 Wait 10 | . . 10 Move 345 | 81 148 116 Hop . | . . . Pick Up 22 | 5 8 9 Fast Attach 16 | 9 . 7 Attach 4 | . 2 2 Detach 5 | 2 1 2 Swap 2 | 1 1 . Drop 7 | . 1 6 Fire 56 | 8 30 18 Melee . | . . . Ram 1 | . 1 . Kick . | . . . Crush 1 | . . 1 Escape Stasis . | . . . Rewire . | . . . Trap . | . . . Miscellaneous . | . . . Route ------- -11/Junkyard -10/Materials -9/Materials History --------- Turn | Location | Event 12 | -11/Junkyard | Discovered new exit (range 16) 119 | -11/Junkyard | Entered Materials 318 | -10/Materials | Build established: Mutant 388 | -10/Materials | Discovered new exit (range 16) 415 | -10/Materials | Entered another Materials area 415 | -9/Materials | Evolved 2 slots: Propulsion x2 663 | -9/Materials | Self-destructed Last Messages --------------- 00575_ R-06 Scavenger collects Assault Rifle. 00579_ Acquired Lgt. Assault Rifle. 00579_ R-06 Scavenger collects Med. Laser. 00582_ R-06 Scavenger collects Hvy. Particle Gun. 00583_ K-01 Serf cleans the Nuclear Reactor. 00588_ K-01 Serf collects debris. 00592_ K-01 Serf cleans the Nuclear Reactor. 00592_ K-01 Serf collects debris. 00595_ K-01 Serf cleans the Nuclear Reactor. 00608_ K-01 Serf collects debris. 00618_ K-01 Serf cleans the Nuclear Reactor. 00621_ ALERT: Hostiles spotted, dispatching reinforcements to Terminal M012. 00622_ K-01 Serf collects debris. 00622_ Acquired Heat Sink. 00623_ W-16 Scout destroyed. 00626_ K-01 Serf cleans the Nuclear Reactor. 00632_ W-16 Scout suffers critical hit (Destroy). 00632_ Destroyed Hover Unit. 00637_ K-01 Serf cleans the Nuclear Reactor. Map ----- +----------------------------------------------------+ | ?????????????????????????????????????????????????? | | ?????????????????????????????????????????????????? | | ?????????????????????????????????????????????????? | | ?????????????????????????????????????????????????? | | ?????????????????????????????????????????????????? | | ?????????????????????????????????????????????????? | | ?????????????????????????????????????????????????? | | ?????????????????????????????????????????????????? | | ?????????????????????????????????????????????????? | | ?????????????????????????????????????????????????? | | ?????????????????????????????????????????????????? | | ?????????????????????????????????????????????????? | | ?????????????????????????????????????????????????? | | ?????????????????????????????????????????????????? | | ?????????????????????????????????????????????????? | | ?????????????????????????????????????????????????? | | ?????????????????????????????????????????????????? | | ?????????????????????????????????????????????????? | | ?????????????????????????????????????????????????? | | ??????????????????????########???????????????????? | | ??????????????????????# #???????????????????? | | ??????????????????????# #??""???????????????? | | ??????????????????????# """ #? """ #???????????? | | ??????????????????????# """ #? """ #???????????? | | ??????????????????????# """ # """ #???????????? | | ??????????????????????# @ # #???????????? | | ??????????? #######g### #???????????? | | ?????????????# g #???????????? | | ??????????????????######## ##??????????? | | ?????????????????????????# #????????? | | ????????????? ????????#### +????????? | | ?????????????? ?????+ """ """ #????????? | | ??????????????? "????#### """ """ #????????? | | ???????????????? ""??????# """ """ #????????? | | ????????????????? ?????# #????????? | | ?????????????????? ????# ######???? | | ??????????????????##+##### """ """ ! ???? | | ??????????????????# !%= """ """ ???? | | ?????????########## * """ """ ????? | | ???????? ?????? | | ?????????# ! ???????? | | ?????????# """ #????????? | | ?????????# |*] """ #????????? | | ?????????# []! |* """ #????????? | | ???????? [] |* #????????? | | ???????? [! #????????? | | ????????? T #????????? | | ?????????? ########## | | ?????????? ##########+### # # | | ?????????? #######?????????????# # T # | +----------------------------------------------------+ Best States ------------- Heat Dissipation 28 Energy Generation 10 Energy Capacity 250 Matter Stores 219 Matter Capacity 350 Sight Range 16 Terrain Scan Density 10 Evasion (%) 46 Recoil Reduction 2 Item Schematics ----------------- None Robot Schematics ------------------ None Fabricated ------------ Nothing Alien Tech Used ----------------- None Achievements -------------- None Challenges ------------ None Game ------ Seed PlasmaScatterMembrane Manual? 0 Play Time 00:13:14 Cumulative 7.1 hours Start 2023.10.23 @ 22:44:23 End 2023.10.23 @ 22:55:33 Sessions 1 Manual Loads 0 Difficulty Rogue Special Mode None Game No. 10 Rogue 10 Adventurer 0 Explorer 0 Win Type - Total 0 Types 0/0/0/0/0/0/0/0/0 Lore% 5 Gallery% 15 Achievement% 13 Wizard Run 0 Options --------- ASCII 0 Keyboard 1 Movement Numpad Keybinds 0 Fullscreen 1 Font 18/TerminusBold Map View 76x50 Tactical HUD 1 Map Filters NONE Filters NONE Steam 1 RUN: 18cf3a22-8c50-4f2a-9ca2-35d3a968fed0